bitfinex/quotes_BTCUSD_20220211
["timestamp","ask_amount","ask_price","bid_price","bid_amount"]
[1644575741208,0.0026136,43476.0,43475.0,0.01065]
[1644575743010,0.0026136,43476.0,43475.0,0.05675]
[1644575743414,0.0026136,43476.0,43475.0,0.3544376]
[1644575743654,0.001,43481.0,43476.0,0.9]
[1644575743856,0.001,43481.0,43480.0,0.05]
[1644575744054,0.001,43481.0,43480.0,1.01503979]
[1644575744252,0.00157056,43484.0,43481.0,0.760642]
[1644575744457,0.00157056,43484.0,43483.0,0.010638]
[1644575744651,0.00157056,43484.0,43483.0,0.632738]
[1644575744851,0.00157056,43484.0,43483.0,0.732738]
[1644575745854,0.00051168,43484.0,43483.0,0.92900933]
[1644575746051,0.00051168,43484.0,43483.0,1.07086675]
[1644575746453,0.00102336,43484.0,43483.0,1.18583975]
[1644575746852,0.42,43493.0,43484.0,0.75]
[1644575747061,0.071,43495.0,43490.0,0.3659665]
[1644575747314,0.431,43499.0,43491.0,3.55580663]
[1644575747315,0.424,43499.0,43491.0,3.55580663]
[1644575747518,0.424,43499.0,43498.0,0.576]
[1644575747519,0.423,43499.0,43498.0,0.576]
[1644575747715,0.423,43499.0,43498.0,0.6221]
[1644575747913,0.423,43499.0,43498.0,0.7221]
[1644575748117,0.009,43499.0,43498.0,0.90512]
[1644575748513,0.009,43499.0,43498.0,0.95512]
[1644575748915,0.009,43499.0,43498.0,0.90512]
[1644575749114,0.009,43499.0,43498.0,0.80512]
[1644575749319,0.309,43499.0,43498.0,0.056713]
[1644575749515,0.009,43499.0,43498.0,0.0461]
[1644575749720,0.009,43499.0,43497.0,0.057469]
[1644575750117,0.309,43499.0,43494.0,0.114988]
[1644575750320,0.2,43492.0,43488.0,0.3]
[1644575750519,0.2,43492.0,43476.0,0.19620822]
[1644575750520,0.373681,43489.0,43476.0,0.19620822]
[1644575750716,0.3,43488.0,43479.0,0.5]
[1644575750917,0.43089701,43487.0,43475.0,0.057524]
[1644575751156,0.3150806,43484.0,43476.0,0.010641]
[1644575751656,0.3153305,43484.0,43474.0,0.00597231]
[1644575751864,0.3153305,43484.0,43477.0,0.057513]
[1644575752258,0.42,43485.0,43478.0,0.057513]
[1644575752458,0.00066152,43481.0,43478.0,0.057513]
[1644575752661,0.00066152,43481.0,43479.0,0.010642]
[1644575752854,0.00066152,43481.0,43478.0,0.057513]
[1644575753056,0.00066152,43481.0,43479.0,0.010643]
[1644575753455,0.54042692,43484.0,43479.0,0.010643]
[1644575753653,0.54042692,43484.0,43478.0,0.057513]
[1644575753654,0.00066095,43482.0,43478.0,0.057513]
[1644575754655,0.54042692,43484.0,43478.0,0.057513]
[1644575754910,0.00066095,43482.0,43478.0,0.057513]
[1644575755708,0.26388507,43484.0,43478.0,0.057513]
[1644575756106,0.0006388,43482.0,43478.0,0.057513]
[1644575756909,0.52767342,43484.0,43478.0,0.057513]
[1644575757311,0.00063888,43482.0,43478.0,0.057513]
[1644575757711,0.00063888,43482.0,43479.0,0.010641]
[1644575758009,0.00063888,43482.0,43478.0,0.057513]
[1644575758209,0.71775359,43485.0,43478.0,0.057513]
[1644575758410,0.00063888,43483.0,43478.0,0.057513]
[1644575758659,0.00063888,43483.0,43479.0,0.010642]
[1644575759458,0.00025012,43484.0,43478.0,0.107513]
[1644575759667,0.42,43485.0,43482.0,0.068144]
[1644575759668,0.00066103,43483.0,43482.0,0.068144]
[1644575759860,0.00025012,43484.0,43482.0,0.218144]
[1644575760064,0.42,43485.0,43484.0,0.010636]
[1644575760065,0.42025012,43485.0,43484.0,0.010636]
[1644575760261,0.42,43485.0,43484.0,0.010636]
[1644575760664,0.42,43485.0,43482.0,0.057506]
[1644575761860,0.29303577,43483.0,43482.0,0.057506]
[1644575764010,0.42074266,43485.0,43482.0,0.057506]
[1644575764211,0.42,43485.0,43482.0,0.057506]
[1644575764412,0.42069335,43485.0,43482.0,0.057506]
[1644575765216,0.76678211,43485.0,43482.0,0.057506]
[1644575765412,0.76608876,43485.0,43482.0,0.057506]
[1644575765813,0.34608876,43485.0,43482.0,0.057506]
[1644575766465,0.60844816,43485.0,43482.0,0.057506]
[1644575766665,0.60834755,43485.0,43482.0,0.051751]
[1644575767264,0.60834755,43485.0,43481.0,0.124213]
[1644575767265,0.60834755,43485.0,43481.0,0.009201]
[1644575767472,0.60859767,43485.0,43481.0,0.009201]
[1644575767667,0.60859767,43485.0,43481.0,0.000101]
[1644575767668,0.323681,43484.0,43481.0,0.000101]
[1644575767873,0.323681,43484.0,43469.0,0.18343252]
[1644575768068,0.39720545,43471.0,43469.0,0.18343252]
[1644575768268,0.213568,43476.0,43470.0,0.010651]
[1644575768869,0.08108141,43472.0,43470.0,0.010651]
[1644575769170,0.08108141,43472.0,43470.0,0.068179]
[1644575769171,0.26152373,43471.0,43470.0,0.068179]
[1644575769370,0.07689,43472.0,43465.0,0.115066]
[1644575769571,0.3,43475.0,43469.0,0.009205]
[1644575769804,0.213568,43476.0,43469.0,0.009205]
[1644575770004,0.30858069,43475.0,43468.0,0.05752442]
[1644575770409,0.30858069,43475.0,43470.0,0.00056687]
[1644575770607,0.26233625,43477.0,43470.0,0.00056687]
[1644575770804,0.26233625,43477.0,43471.0,0.057522]
[1644575771005,0.26233625,43477.0,43471.0,0.11504493]
[1644575771305,0.26233625,43477.0,43471.0,0.05752293]
[1644575771504,0.26233625,43477.0,43472.0,0.00056685]
[1644575771905,0.5463,43481.0,43473.0,0.115049]
[1644575772107,0.7849,43484.0,43474.0,0.05752022]
[1644575772309,0.7849,43484.0,43475.0,0.115027]
[1644575772506,0.7849,43484.0,43476.0,0.15]
[1644575772507,0.00025012,43483.0,43476.0,0.15]
[1644575772708,0.00025012,43485.0,43476.0,0.15]
[1644575772911,0.00025012,43483.0,43477.0,0.01065]
[1644575773106,0.63046429,43486.0,43480.0,0.05751152]
[1644575773107,0.00025012,43485.0,43480.0,0.05751152]
[1644575773306,0.63046429,43486.0,43480.0,0.05751152]
[1644575773559,0.00025012,43485.0,43480.0,0.05751152]
[1644575774053,0.3304222,43483.0,43480.0,0.05751152]
[1644575774454,0.00025012,43484.0,43481.0,0.115014]
[1644575774754,0.00025012,43486.0,43481.0,0.17252297]
[1644575774952,2.37340022,43488.0,43481.0,0.17252297]
[1644575774953,0.00025012,43487.0,43481.0,0.17252397]
[1644575775352,0.00066024,43485.0,43481.0,0.17252397]
[1644575775558,0.27021064,43483.0,43482.0,0.057509]
[1644575775754,0.00091036,43485.0,43483.0,0.057511]
[1644575775953,0.00066024,43485.0,43483.0,0.057511]
[1644575776152,0.00025012,43487.0,43483.0,0.057511]
[1644575776352,0.00025012,43486.0,43483.0,0.057511]
[1644575776652,0.00066024,43486.0,43483.0,0.11501785]
[1644575776852,0.27423428,43485.0,43484.0,0.11430522]
[1644575777052,0.27423428,43485.0,43484.0,0.10429132]
[1644575778325,0.00074192,43487.0,43485.0,0.11501938]
[1644575778625,2.2914145,43488.0,43485.0,0.17252938]
[1644575778824,0.0004918,43487.0,43486.0,0.057509]
[1644575779824,2.29116438,43488.0,43486.0,0.057509]
[1644575781268,2.29116438,43488.0,43487.0,0.29653116]
[1644575781469,2.28116438,43488.0,43487.0,0.0461]
[1644575782266,2.28116438,43488.0,43486.0,0.05210027]
[1644575782467,2.28116438,43488.0,43487.0,0.0461]
[1644575782666,2.35639616,43488.0,43487.0,0.0461]
[1644575782867,2.28116438,43488.0,43487.0,0.0461]
[1644575783667,2.28101304,43488.0,43487.0,0.0461]
[1644575784066,0.00094321,43490.0,43487.0,0.0461]
[1644575784267,0.00069309,43490.0,43489.0,0.057506]
[1644575784469,0.00069309,43490.0,43489.0,0.114233]
[1644575784669,0.009,43499.0,43489.0,0.114233]
[1644575784670,0.00025012,43494.0,43489.0,0.114233]
[1644575784906,0.0009432,43492.0,43490.0,0.010624]
[1644575785105,0.00069308,43492.0,43490.0,0.010624]
[1644575785506,0.00069308,43492.0,43490.0,0.125631]
[1644575785808,0.00025012,43494.0,43491.0,0.010625]
[1644575786012,0.00069307,43493.0,43490.0,0.165007]
[1644575786208,0.00069307,43493.0,43491.0,0.068128]
[1644575787106,0.00025012,43494.0,43491.0,0.068128]
[1644575787307,0.00069307,43494.0,43491.0,0.11501]
[1644575787509,0.00069307,43494.0,43492.0,0.115009]
[1644575787907,0.00069307,43494.0,43492.0,0.17251264]
[1644575788308,0.34340192,43495.0,43492.0,0.23001764]
[1644575788565,0.00069306,43495.0,43492.0,0.23001764]
[1644575788760,0.00069306,43495.0,43493.0,0.056722]
[1644575788959,0.00025012,43498.0,43494.0,0.15]
[1644575789159,0.009,43499.0,43496.0,0.4]
[1644575789357,0.00025056,43498.0,43497.0,0.171674]
[1644575789557,0.009,43499.0,43498.0,0.34323643]
[1644575789757,0.009,43499.0,43498.0,0.48933643]
[1644575789960,0.00025056,43501.0,43498.0,0.156713]
[1644575790160,0.02102413,43506.0,43499.0,0.05747504]
[1644575790161,0.00025056,43502.0,43499.0,0.05747504]
[1644575790358,0.00025056,43505.0,43500.0,0.114195]
[1644575790557,0.00025056,43502.0,43501.0,0.161071]
[1644575790758,0.00025056,43504.0,43502.0,0.010607]
[1644575791063,0.00049151,43504.0,43502.0,0.056707]
[1644575791959,0.00025056,43505.0,43502.0,0.114192]
[1644575792162,0.00074207,43505.0,43502.0,0.114192]
[1644575793205,0.00025056,43505.0,43502.0,0.114192]
[1644575793405,0.00094358,43505.0,43502.0,0.114192]
[1644575794204,0.00025056,43505.0,43502.0,0.114192]
[1644575794605,0.00094358,43505.0,43502.0,0.114192]
[1644575795208,0.00094358,43505.0,43502.0,0.068092]
[1644575795407,0.00025056,43505.0,43502.0,0.068092]
[1644575795804,0.00094358,43505.0,43502.0,0.068092]
[1644575796655,0.00025056,43505.0,43502.0,0.068092]
[1644575797058,0.00094358,43505.0,43502.0,0.068092]
[1644575797858,0.00025056,43505.0,43502.0,0.068092]
[1644575798059,0.00025056,43505.0,43502.0,0.118092]
[1644575798258,0.00094358,43505.0,43502.0,0.118092]
[1644575798658,0.00094358,43505.0,43502.0,0.068092]
[1644575799062,0.051,43503.0,43499.0,1.0]
[1644575799263,0.06750105,43502.0,43499.0,1.0]
[1644575799459,0.001,43503.0,43499.0,1.0]
[1644575799661,0.00125056,43503.0,43499.0,1.0]
[1644575799907,0.31796167,43501.0,43500.0,0.010609]
[1644575800308,0.00125056,43503.0,43500.0,0.0681]
[1644575800510,0.001,43503.0,43500.0,0.0681]
[1644575800707,0.00169303,43503.0,43500.0,0.0681]
[1644575801109,0.00108059,43503.0,43501.0,0.057484]
[1644575801317,0.00108059,43503.0,43502.0,0.32213688]
[1644575801614,0.00038756,43503.0,43502.0,0.37213688]
[1644575801807,0.00038756,43503.0,43502.0,0.060607]
[1644575802211,0.00038756,43503.0,43502.0,0.010607]
[1644575802409,0.00038756,43503.0,43502.0,0.056707]
[1644575802610,0.00038756,43503.0,43502.0,0.24003644]
[1644575802809,0.00038756,43503.0,43502.0,0.056707]
[1644575806564,0.00038756,43503.0,43502.0,0.41313925]
[1644575806767,0.00038756,43503.0,43502.0,0.51313925]
[1644575809409,0.00038756,43503.0,43502.0,0.41313925]
[1644575809604,0.00038756,43503.0,43502.0,0.156707]
[1644575810705,0.00038756,43503.0,43502.0,0.056707]
[1644575812158,0.00038756,43503.0,43501.0,0.1]
[1644575812357,0.00038756,43503.0,43501.0,0.05]
[1644575812558,0.00038756,43503.0,43501.0,0.009197]
[1644575812759,0.00038756,43503.0,43501.0,0.124157]
[1644575813160,0.00038756,43503.0,43501.0,0.18162914]
[1644575813358,0.00038756,43503.0,43502.0,0.0461]
[1644575814058,0.00038756,43503.0,43502.0,0.0961]
[1644575815705,0.00038756,43503.0,43502.0,0.1461]
[1644575816805,0.0009439,43505.0,43503.0,0.6]
[1644575817012,0.00069334,43505.0,43504.0,0.35492352]
[1644575817205,0.02102413,43506.0,43504.0,0.40492352]
[1644575817406,0.02171746,43506.0,43504.0,0.46239252]
[1644575817807,0.02171746,43506.0,43505.0,0.35601951]
[1644575818207,0.02171746,43506.0,43505.0,0.47095711]
[1644575818408,0.02102413,43506.0,43505.0,0.51705711]
[1644575819457,0.02102413,43506.0,43505.0,0.1610376]
[1644575824109,0.0087671,43506.0,43505.0,0.1610376]
[1644575826559,0.0087671,43506.0,43505.0,0.45650053]
[1644575826757,0.0087671,43506.0,43505.0,0.55650053]
[1644575826956,0.0087671,43506.0,43505.0,0.2610376]
[1644575827157,0.0087671,43506.0,43505.0,0.56990666]
[1644575828160,0.0087671,43506.0,43505.0,1.06990666]
[1644575828361,0.0087671,43506.0,43505.0,0.7610376]
[1644575828559,0.0087671,43506.0,43505.0,0.8110376]
[1644575829359,0.0087671,43506.0,43505.0,1.10836446]
[1644575830215,0.103,43513.0,43508.0,0.057467]
[1644575830216,0.101,43513.0,43508.0,0.057467]
[1644575830519,0.9959,43519.0,43508.0,0.057467]
[1644575830520,0.00025,43523.0,43513.0,0.9]
[1644575830717,0.00025,43523.0,43515.0,0.05]
[1644575830718,0.00121216,43521.0,43515.0,0.05]
[1644575830910,0.00121216,43521.0,43518.0,0.576]
[1644575830911,0.00112738,43521.0,43518.0,0.576]
[1644575831110,0.00137822,43521.0,43520.0,0.35345219]
[1644575831310,0.00025,43523.0,43522.0,0.057446]
[1644575831510,0.00025,43523.0,43522.0,0.103546]
[1644575831708,0.00025,43523.0,43522.0,0.153546]
[1644575831909,0.00275,43527.0,43522.0,0.7461]
[1644575832112,0.00275,43527.0,43523.0,0.10744514]
[1644575832410,0.00275,43527.0,43525.0,0.114887]
[1644575832614,0.00275,43527.0,43526.0,0.0461]
[1644575832815,0.00275,43527.0,43526.0,0.36632313]
[1644575833013,0.001,43532.0,43527.0,0.4]
[1644575833312,0.001,43532.0,43528.0,0.0461]
[1644575833568,0.001,43532.0,43529.0,0.30623132]
[1644575833863,0.001,43532.0,43530.0,0.0461]
[1644575834060,0.001,43532.0,43530.0,0.35364731]
[1644575834259,0.001,43532.0,43530.0,0.1461]
[1644575834758,0.001,43532.0,43530.0,0.0461]
[1644575842357,0.15718951,43535.0,43525.0,0.9192874]
[1644575842562,0.00069327,43533.0,43530.0,0.2926]
[1644575843559,0.08421051,43531.0,43530.0,0.2926]
[1644575843863,0.45787751,43531.0,43530.0,0.2926]
[1644575844562,0.40787751,43531.0,43530.0,0.2926]
[1644575844805,0.08421051,43531.0,43530.0,0.2926]
[1644575845308,0.323667,43534.0,43530.0,0.2926]
[1644575845508,0.15788274,43535.0,43530.0,0.2926]
[1644575845908,0.15788274,43535.0,43531.0,0.057455]
[1644575846108,0.15718951,43535.0,43531.0,0.057455]
[1644575846310,0.323667,43534.0,43531.0,0.057455]
[1644575846511,0.00204549,43535.0,43531.0,0.057455]
[1644575846715,0.00204549,43535.0,43532.0,0.0461]
[1644575846911,0.00204549,43535.0,43531.0,0.057455]
[1644575846912,0.00229628,43535.0,43531.0,0.057455]
[1644575847310,0.00160303,43535.0,43531.0,0.057455]
[1644575847511,0.00228166,43535.0,43531.0,0.114903]
[1644575848112,0.00228166,43535.0,43532.0,0.0461]
[1644575848313,0.00203087,43535.0,43532.0,0.0461]
[1644575848569,0.00135224,43535.0,43531.0,0.057455]
[1644575848765,0.323667,43534.0,43531.0,0.057455]
[1644575848960,0.00160303,43535.0,43530.0,0.2926]
[1644575849161,0.00025079,43534.0,43530.0,0.2926]
[1644575849361,0.00160303,43535.0,43530.0,0.2926]
[1644575849565,0.00025079,43534.0,43530.0,0.2926]
[1644575849762,0.00160303,43535.0,43530.0,0.2926]
[1644575850063,0.00025079,43534.0,43531.0,0.057456]
[1644575850262,0.00203086,43535.0,43531.0,0.057456]
[1644575850263,0.00228165,43535.0,43531.0,0.057456]
[1644575850868,0.00160303,43535.0,43531.0,0.057456]
[1644575851064,0.00226069,43535.0,43531.0,0.057456]
[1644575851467,0.00217487,43535.0,43531.0,0.057456]
[1644575852066,0.00217487,43535.0,43531.0,0.114891]
[1644575852067,0.00151721,43535.0,43531.0,0.114891]
[1644575852308,0.00217487,43535.0,43531.0,0.114891]
[1644575852510,0.00217487,43535.0,43532.0,0.0461]
[1644575852808,0.00192408,43535.0,43532.0,0.0461]
[1644575853008,0.00192408,43535.0,43533.0,0.057438]
[1644575853208,0.00126642,43535.0,43533.0,0.057438]
[1644575853411,0.00126642,43535.0,43533.0,0.114874]
[1644575853608,0.00126642,43535.0,43534.0,0.114875]
[1644575856858,0.001,43536.0,43534.0,0.114875]
[1644575861115,0.001,43536.0,43534.0,1.114875]
[1644575862811,0.001,43536.0,43534.0,1.407275]
[1644575863860,0.06876747,43535.0,43534.0,1.407275]
[1644575864067,0.05,43535.0,43534.0,1.145875]
[1644575864262,0.323667,43535.0,43534.0,0.58273489]
[1644575864460,0.001,43536.0,43534.0,0.58273489]
[1644575864863,0.001,43536.0,43534.0,0.64017689]
[1644575865060,0.29263985,43535.0,43534.0,0.64017689]
[1644575866463,0.29263985,43535.0,43534.0,0.58273489]
[1644575867520,0.29263985,43535.0,43534.0,0.64018289]
[1644575867715,0.29263985,43535.0,43534.0,0.34778289]
[1644575868617,0.29263985,43535.0,43534.0,0.29033489]
[1644575868618,0.93849147,43535.0,43534.0,0.29033489]
[1644575868922,0.88849147,43535.0,43534.0,0.29033489]
[1644575869118,0.56468547,43535.0,43534.0,0.29033489]
[1644575869516,0.61468547,43535.0,43534.0,0.29033489]
[1644575869717,0.88835247,43535.0,43534.0,0.29033489]
[1644575870120,0.93835247,43535.0,43534.0,0.29033489]
[1644575870320,0.98835247,43535.0,43534.0,0.29033489]
[1644575870519,1.18388645,43535.0,43534.0,0.29033489]
[1644575870719,0.91176499,43535.0,43534.0,0.29033489]
[1644575871161,0.71616785,43535.0,43534.0,0.29033489]
[1644575871672,0.71516785,43535.0,43534.0,0.29033489]
[1644575872263,0.95934034,43535.0,43534.0,0.10180746]
[1644575872562,1.25934034,43535.0,43534.0,0.10180746]
[1644575872762,1.25834034,43535.0,43534.0,0.10180746]
[1644575873163,1.01416785,43535.0,43534.0,0.10180746]
[1644575874366,1.35717484,43535.0,43534.0,0.10180746]
[1644575874567,1.16416785,43535.0,43534.0,0.10180746]
[1644575875214,1.50600934,43535.0,43534.0,0.10180746]
[1644575875412,1.35600934,43535.0,43534.0,0.10180746]
[1644575875614,1.35500934,43535.0,43534.0,0.10180746]
[1644575876515,1.01316785,43535.0,43534.0,0.10180746]
[1644575877014,1.01216785,43535.0,43534.0,0.10180746]
[1644575877414,1.35400934,43535.0,43534.0,0.10180746]
[1644575878216,1.56147134,43535.0,43534.0,0.10180746]
[1644575878416,1.66147134,43535.0,43534.0,0.10180746]
[1644575879263,1.71147134,43535.0,43534.0,0.10180746]
[1644575879661,1.71047134,43535.0,43534.0,0.10180746]
[1644575879863,1.26551779,43535.0,43534.0,0.01987989]
[1644575884211,1.26551779,43535.0,43521.0,0.00057598]
[1644575884212,0.15,43523.0,43521.0,0.00057598]
[1644575884415,0.15,43523.0,43513.0,0.5]
[1644575884416,0.73153475,43522.0,43513.0,0.5]
[1644575884619,0.05,43515.0,43513.0,0.5]
[1644575884813,0.323667,43514.0,43513.0,0.5]
[1644575885013,0.322667,43514.0,43513.0,0.5]
[1644575885213,0.61240748,43514.0,43513.0,0.5]
[1644575885414,0.05748168,43512.0,43505.0,0.11496]
[1644575885613,0.057482,43510.0,43505.0,0.11496]
[1644575886572,0.1156,43515.0,43507.0,0.057482]
[1644575886969,0.1156,43515.0,43507.0,0.25337687]
[1644575887173,0.1156,43515.0,43509.0,0.11549959]
[1644575887370,0.64840373,43521.0,43509.0,0.11549959]
[1644575887572,0.3053387,43519.0,43509.0,0.11549959]
[1644575887771,0.3053387,43519.0,43509.0,0.17296159]
[1644575887973,0.3053387,43519.0,43510.0,0.057461]
[1644575888270,0.3824,43521.0,43512.0,0.11550055]
[1644575888670,0.1203,43524.0,43512.0,0.11550055]
[1644575889072,0.1703,43524.0,43515.0,0.38620438]
[1644575889273,0.1203,43524.0,43515.0,0.38620438]
[1644575889471,0.1203,43524.0,43516.0,0.0005775]
[1644575890110,0.1203,43524.0,43516.0,0.11549482]
[1644575890310,0.1203,43524.0,43516.0,0.10413482]
[1644575890509,0.27755296,43529.0,43516.0,0.10355732]
[1644575890710,0.27755296,43529.0,43518.0,0.00060146]
[1644575891111,0.27755296,43529.0,43521.0,0.057454]
[1644575891409,0.27755296,43529.0,43522.0,0.0461]
[1644575891610,0.05,43528.0,43522.0,0.0461]
[1644575891810,0.27755296,43529.0,43522.0,0.0461]
[1644575892011,0.0539,43522.0,43521.0,0.00060141]
[1644575892215,0.0539,43522.0,43521.0,0.05805741]
[1644575893009,0.0539,43522.0,43521.0,0.057456]
[1644575895464,0.0539,43522.0,43521.0,0.1696704]
[1644575898511,0.60746991,43527.0,43521.0,0.1696704]
[1644575898512,0.19566724,43530.0,43522.0,0.8]
[1644575898715,0.00025128,43532.0,43525.0,0.057458]
[1644575898912,0.00025128,43533.0,43526.0,0.3461]
[1644575899111,0.013,43539.0,43527.0,0.0461]
[1644575899314,0.013,43539.0,43528.0,0.0461]
[1644575899315,0.00074132,43535.0,43528.0,0.0461]
[1644575899511,0.00074132,43535.0,43524.0,0.222295]
[1644575899512,0.00033959,43535.0,43532.0,0.35843688]
[1644575899711,0.00059229,43535.0,43533.0,0.10354]
[1644575899912,0.00033959,43535.0,43533.0,0.10354]
[1644575900216,0.0012527,43536.0,43533.0,0.15354]
[1644575900412,0.001,43536.0,43533.0,0.15354]
[1644575900813,0.001,43536.0,43533.0,0.10354]
[1644575902266,0.001,43536.0,43526.0,0.387192]
[1644575902267,0.01697572,43527.0,43526.0,0.387192]
[1644575902464,0.001,43536.0,43527.0,0.0461]
[1644575902465,0.0012527,43536.0,43527.0,0.0461]
[1644575902665,0.0002527,43535.0,43527.0,0.0461]
[1644575903063,0.0012527,43536.0,43530.0,0.05744959]
[1644575903264,0.0002527,43535.0,43533.0,0.05744]
[1644575903464,0.0012527,43536.0,43533.0,0.05744]
[1644575903666,0.001,43536.0,43533.0,0.05744]
[1644575904912,0.001,43536.0,43534.0,0.0461]
[1644575909264,0.001,43536.0,43534.0,0.21841342]
[1644575910464,0.001,43536.0,43534.0,0.4016561]
[1644575911163,0.001,43536.0,43534.0,0.5016561]
[1644575911362,0.00094709,43537.0,43535.0,0.114852]
[1644575911565,0.00069439,43537.0,43536.0,0.16095147]
[1644575912165,0.0132527,43539.0,43536.0,0.16095147]
[1644575912430,0.01369438,43539.0,43537.0,0.17227]
[1644575912632,0.01369438,43539.0,43538.0,0.0461]
[1644575913329,0.013,43539.0,43538.0,0.0461]
[1644575917462,0.013,43539.0,43538.0,0.34343065]
[1644575917663,0.013,43539.0,43538.0,0.0461]
[1644575918464,0.013,43539.0,43537.0,0.17227]
[1644575918670,0.013,43539.0,43538.0,0.0461]
[1644575920214,0.013,43539.0,43538.0,0.34276197]
[1644575920416,0.013,43539.0,43538.0,0.44276197]
[1644575922717,0.013,43539.0,43538.0,0.34276197]
[1644575923319,0.013,43539.0,43538.0,0.44276197]
[1644575923578,0.01287418,43539.0,43538.0,0.44276197]
[1644575923768,0.06732314,43543.0,43539.0,0.057432]
[1644575923973,0.00025283,43541.0,43540.0,0.0461]
[1644575924168,0.06732314,43543.0,43540.0,0.160961]
[1644575924367,0.06757597,43543.0,43540.0,0.160961]
[1644575924567,0.06732314,43543.0,43540.0,0.160961]
[1644575924970,0.00047696,43551.0,43542.0,0.95]
[1644575925174,0.00047696,43551.0,43550.0,0.576]
[1644575925371,0.00047696,43551.0,43550.0,0.72755447]
[1644575925769,0.00047696,43551.0,43550.0,0.6221]
[1644575925967,0.00047696,43551.0,43550.0,0.679507]
[1644575927613,0.35530994,43551.0,43550.0,0.679507]
[1644575928514,0.35530994,43551.0,43550.0,0.103507]
[1644575929322,0.35530994,43551.0,43550.0,0.057407]
[1644575929623,0.35530994,43551.0,43546.0,0.114862]
[1644575929624,0.057436,43549.0,43536.0,0.3]
[1644575929815,0.057436,43549.0,43535.0,0.183867]
[1644575929816,0.06519014,43540.0,43535.0,0.183867]
[1644575930016,0.34490451,43541.0,43535.0,0.0006916]
[1644575930214,0.34490451,43541.0,43528.0,0.69254636]
[1644575930215,0.26853549,43539.0,43528.0,0.69254636]
[1644575930417,0.26853549,43539.0,43535.0,0.0006916]
[1644575930615,0.26853549,43539.0,43535.0,0.1155796]
[1644575931166,0.05813617,43543.0,43535.0,0.1155796]
[1644575931367,0.057441,43543.0,43538.0,0.01]
[1644575931766,0.05813617,43543.0,43538.0,0.01]
[1644575932168,0.28970605,43539.0,43538.0,0.01]
[1644575932366,0.28970605,43539.0,43538.0,0.12387601]
[1644575934267,0.28070604,43539.0,43538.0,0.114876]
[1644575939662,0.33070604,43539.0,43538.0,0.114876]
[1644575940663,0.28070604,43539.0,43538.0,0.114876]
[1644575944616,0.26834605,43539.0,43538.0,0.114876]
[1644575949264,0.31834605,43539.0,43538.0,0.114876]
[1644575949471,0.31834605,43539.0,43533.0,0.1122144]
[1644575949472,0.323666,43537.0,43533.0,0.1122144]
[1644575949669,0.29209643,43536.0,43535.0,0.0006916]
[1644575949916,0.419766,43536.0,43535.0,0.0006916]
[1644575950116,0.769766,43536.0,43535.0,0.0006916]
[1644575950320,1.08790392,43536.0,43535.0,0.0006916]
[1644575950715,0.78790392,43536.0,43533.0,0.1122144]
[1644575950916,0.51967369,43534.0,43533.0,0.1122144]
[1644575951118,0.56967369,43534.0,43533.0,0.1122144]
[1644575951316,0.423666,43534.0,43533.0,0.1122144]
[1644575951717,0.71880136,43534.0,43533.0,0.1122144]
[1644575951918,0.91480905,43534.0,43533.0,0.1122144]
[1644575952118,0.71880136,43534.0,43533.0,0.1122144]
[1644575952823,0.96480905,43534.0,43533.0,0.1122144]
[1644575953420,0.76880136,43534.0,43533.0,0.1122144]
[1644575953864,0.96480905,43534.0,43533.0,0.1122144]
[1644575954066,0.76880136,43534.0,43533.0,0.1122144]
[1644575955267,0.71880136,43534.0,43533.0,0.1122144]
[1644575955471,0.76880136,43534.0,43533.0,0.1122144]
[1644575956067,0.96480905,43534.0,43533.0,0.1122144]
[1644575956267,0.76880136,43534.0,43533.0,0.1122144]
[1644575957069,0.71880136,43534.0,43533.0,0.1122144]
[1644575957315,0.76880136,43534.0,43533.0,0.1122144]
[1644575957515,0.473666,43534.0,43533.0,0.1122144]
[1644575964677,0.423666,43534.0,43533.0,0.1122144]
[1644575964916,0.323666,43534.0,43533.0,0.1122144]
[1644575965118,0.37559792,43536.0,43533.0,0.1122144]
[1644575966217,0.10746,43536.0,43533.0,0.1696684]
[1644575966416,0.05746,43536.0,43533.0,0.1696684]
[1644575966616,0.05,43535.0,43533.0,0.1696684]
[1644575967025,0.10746,43536.0,43533.0,0.1696684]
[1644575967217,1.71184098,43534.0,43533.0,0.1696684]
[1644575967617,1.76184098,43534.0,43533.0,0.1696684]
[1644575968020,0.05,43534.0,43533.0,0.1696684]
[1644575968217,0.05,43535.0,43533.0,0.1696684]
[1644575968421,0.10746,43536.0,43533.0,0.1696684]
[1644575969065,0.10746,43536.0,43533.0,0.16956159]
[1644575969665,0.1649102,43536.0,43533.0,0.16956159]
[1644575970366,1.72527007,43535.0,43533.0,0.16956159]
[1644575970582,0.1649102,43536.0,43533.0,0.16956159]
[1644575970768,0.2149102,43536.0,43533.0,0.16956159]
[1644575971071,0.15746,43536.0,43533.0,0.16956159]
[1644575972168,0.21490986,43536.0,43533.0,0.16956159]
[1644575972423,0.45744688,43537.0,43534.0,0.29535775]
[1644575972424,0.057443,43537.0,43534.0,0.29535775]
[1644575972621,0.11557781,43543.0,43534.0,0.29535775]
[1644575972622,0.00069481,43543.0,43535.0,0.057439]
[1644575973422,0.32290876,43543.0,43535.0,0.057439]
[1644575973629,0.32290876,43543.0,43535.0,0.05812951]
[1644575973630,0.32360362,43543.0,43535.0,0.05812951]
[1644575973823,0.33099238,43542.0,43535.0,0.05812951]
[1644575974023,0.057438,43541.0,43535.0,0.05812951]
[1644575974720,0.057438,43541.0,43535.0,0.057439]
[1644575974922,0.057438,43541.0,43535.0,0.05812951]
[1644575975822,0.057438,43541.0,43535.0,0.057439]
[1644575976070,0.057438,43541.0,43535.0,0.05812951]
[1644575976968,0.057438,43541.0,43535.0,0.057439]
[1644575976969,0.11487883,43541.0,43535.0,0.057439]
[1644575977269,0.05744083,43541.0,43535.0,0.05812951]
[1644575977468,0.057441,43540.0,43535.0,0.05812951]
[1644575978270,0.057441,43540.0,43535.0,0.057439]
[1644575978469,0.31350775,43536.0,43535.0,0.05812951]
[1644575979469,0.31350775,43536.0,43535.0,0.057439]
[1644575980649,0.11488572,43537.0,43535.0,0.057439]
[1644575984877,0.057443,43537.0,43535.0,0.057439]